bitfinex-derivatives/quotes_BTCF0:USTF0_20250212
["timestamp","ask_amount","ask_price","bid_price","bid_amount"]
[1739374311097,0.00015664,95771.0,95770.0,0.5696442]
[1739374311298,0.00715664,95771.0,95770.0,0.9304442]
[1739374312100,0.18560011,95793.0,95770.0,0.9304442]
[1739374312101,0.18560011,95793.0,95770.0,1.0216]
[1739374312301,0.18560011,95793.0,95790.0,0.2088001]
[1739374312497,0.18560011,95793.0,95792.0,0.2087963]
[1739374313012,0.18560011,95793.0,95787.0,0.3608]
[1739374313710,0.18560011,95793.0,95787.0,0.37206794]
[1739374314008,0.18560011,95793.0,95788.0,0.2088039]
[1739374314604,0.003,95793.0,95788.0,0.2088039]
[1739374314901,0.003,95793.0,95789.0,0.2088013]
[1739374315613,0.003,95793.0,95788.0,0.001]
[1739374315909,0.003,95793.0,95789.0,0.3608]
[1739374316413,0.003,95793.0,95788.0,0.001]
[1739374316911,0.2088073,95787.0,95780.0,0.00015664]
[1739374317505,0.18849438,95790.0,95780.0,0.00015664]
[1739374317700,0.3608,95786.0,95771.0,0.01104455]
[1739374317912,0.2088205,95781.0,95769.0,0.3608]
[1739374318105,0.2078205,95781.0,95773.0,0.2088367]
[1739374318301,0.1998,95785.0,95783.0,0.2088145]
[1739374318810,0.1998,95785.0,95777.0,0.3608]
[1739374319015,0.1998,95785.0,95778.0,0.2088254]
[1739374319208,0.1998,95785.0,95779.0,0.2088238]
[1739374319515,0.2088137,95784.0,95777.0,0.3608]
[1739374319704,0.1998,95785.0,95779.0,0.2088227]
[1739374319910,0.002,95786.0,95777.0,0.3608]
[1739374320105,0.002,95786.0,95785.0,0.5696115]
[1739374320915,0.002,95786.0,95785.0,0.3608]
[1739374321516,0.09853488,95800.0,95799.0,0.208781]
[1739374321710,0.09853488,95800.0,95799.0,0.569581]
[1739374322108,0.09853488,95800.0,95799.0,0.3608]
[1739374322909,0.2087318,95822.0,95807.0,0.2087626]
[1739374323210,0.18849438,95820.0,95815.0,0.3608]
[1739374323407,0.18849438,95820.0,95799.0,0.5695805]
[1739374323610,0.18849438,95810.0,95799.0,0.5695805]
[1739374324012,0.18849438,95810.0,95799.0,0.3608]
[1739374324209,0.2087662,95806.0,95799.0,0.3608]
[1739374324417,0.2087695,95805.0,95799.0,0.3608]
[1739374324614,0.18849438,95810.0,95799.0,0.3608]
[1739374324821,0.00015636,95814.0,95808.0,0.2087606]
[1739374325209,0.00015636,95814.0,95809.0,0.3608]
[1739374325514,0.00015636,95814.0,95813.0,0.2087505]
[1739374326020,0.00215636,95814.0,95813.0,0.2087505]
[1739374326928,0.00015636,95814.0,95813.0,0.2097505]
[1739374327414,0.2086876,95842.0,95828.0,0.2087169]
[1739374327618,0.2086986,95837.0,95832.0,0.3608]
[1739374328114,0.2087009,95836.0,95832.0,0.3608]
[1739374328620,0.2087011,95836.0,95832.0,0.3608]
[1739374328822,0.2087069,95833.0,95832.0,0.3608]
[1739374329215,0.208694,95839.0,95832.0,0.3608]
[1739374329615,0.19049438,95842.0,95832.0,0.3608]
[1739374329824,0.2087029,95835.0,95832.0,0.3608]
[1739374330215,0.2086906,95841.0,95832.0,0.3608]
[1739374330421,0.002,95839.0,95835.0,0.2087024]
[1739374330621,0.002,95839.0,95832.0,0.3618]
[1739374330824,0.208703,95835.0,95832.0,0.3618]
[1739374331021,0.2087069,95833.0,95832.0,0.001]
[1739374331525,0.2106948,95839.0,95834.0,0.2087045]
[1739374331725,0.002,95839.0,95836.0,0.2086992]
[1739374331919,0.2087069,95833.0,95832.0,0.001]
[1739374333127,0.002,95839.0,95832.0,0.3618]
[1739374333521,0.002,95839.0,95838.0,0.2086961]
[1739374333921,0.2046,95846.0,95841.0,0.2086886]
[1739374334127,0.2046,95846.0,95843.0,0.3608]
[1739374334924,0.413279,95846.0,95843.0,0.3608]
[1739374335343,0.208683,95844.0,95843.0,0.3608]
[1739374335620,0.2086939,95839.0,95838.0,0.001]
[1739374335821,0.2087102,95832.0,95824.0,0.00015656]
[1739374336023,0.2087202,95827.0,95824.0,0.00015656]
[1739374336523,0.18849438,95840.0,95824.0,0.00015656]
[1739374336524,0.5695244,95825.0,95824.0,0.00015656]
[1739374336713,0.3608,95825.0,95817.0,0.011094]
[1739374336916,0.2087396,95818.0,95804.0,0.2087691]
[1739374337429,0.2077396,95818.0,95805.0,0.208767]
[1739374337922,0.2077396,95818.0,95817.0,0.3608]
[1739374338126,0.2077396,95818.0,95816.0,0.3608]
[1739374338323,0.002,95818.0,95816.0,0.3608]
[1739374339227,0.002,95818.0,95816.0,0.37194376]
[1739374340924,0.004,95818.0,95816.0,0.37294376]
[1739374341929,0.004,95818.0,95816.0,0.01214376]
[1739374343432,0.2127404,95818.0,95816.0,0.01214376]
[1739374343822,0.2127404,95818.0,95816.0,0.01114376]
[1739374344130,0.2127404,95818.0,95807.0,0.3608]
[1739374344131,0.2087489,95814.0,95807.0,0.3608]
[1739374344328,0.2087702,95804.0,95802.0,0.00015656]
[1739374344630,0.5577,95803.0,95802.0,0.00015656]
[1739374344834,0.5567,95803.0,95802.0,0.00015656]
[1739374345830,0.5567,95803.0,95802.0,0.00115656]
[1739374346026,0.1959,95803.0,95802.0,0.00115656]
[1739374346226,0.004,95804.0,95802.0,0.20993106]
[1739374347031,0.2087148,95830.0,95813.0,0.2087485]
[1739374347339,0.208723,95826.0,95820.0,0.3608]
[1739374347538,0.2087114,95831.0,95820.0,0.3608]
[1739374347833,0.18849438,95830.0,95812.0,0.3608]
[1739374348027,0.2043,95829.0,95820.0,0.3608]
[1739374348428,0.4130169,95829.0,95820.0,0.3608]
[1739374348829,0.2043,95829.0,95820.0,0.3608]
[1739374349033,0.20888966,95821.0,95802.0,0.20993056]
[1739374349235,0.18849438,95812.0,95804.0,0.3608]
[1739374349435,0.3608,95808.0,95802.0,0.00115656]
[1739374349633,0.1888,95807.0,95802.0,0.00115656]
[1739374349828,0.1878,95807.0,95802.0,0.00015656]
[1739374350030,0.2087718,95804.0,95802.0,0.00015656]
[1739374350230,0.2043,95803.0,95802.0,0.00015656]
[1739374350425,0.2043,95803.0,95786.0,0.3608]
[1739374350642,0.3608,95798.0,95787.0,0.01126334]
[1739374350828,0.5695835,95798.0,95787.0,0.01126334]
[1739374351534,0.2087962,95793.0,95785.0,0.00015656]
[1739374353026,0.5695814,95799.0,95785.0,0.00015656]
[1739374353232,0.2087889,95796.0,95791.0,0.0010938]
[1739374353543,0.2087931,95794.0,95791.0,0.0010938]
[1739374353730,0.3608,95797.0,95791.0,0.0010938]
[1739374353927,0.3608,95797.0,95785.0,0.00015656]
[1739374354127,0.3608,95797.0,95755.0,0.195]
[1739374354128,0.2088444,95770.0,95755.0,0.195]
[1739374354535,0.18849438,95772.0,95754.0,0.9808371]
[1739374354536,0.18849438,95772.0,95754.0,0.77196]
[1739374354741,0.2088595,95763.0,95754.0,0.00056]
[1739374354933,0.2089533,95763.0,95761.0,0.01091627]
[1739374355336,0.2089533,95763.0,95753.0,0.36095656]
[1739374355543,0.2089533,95763.0,95754.0,0.01087542]
[1739374355736,0.2079533,95763.0,95754.0,0.01087542]
[1739374355939,0.2079533,95763.0,95756.0,0.37286813]
[1739374356235,9.38e-05,95763.0,95756.0,0.37286813]
[1739374356743,9.38e-05,95763.0,95762.0,0.3608]
[1739374357245,9.38e-05,95763.0,95762.0,0.5466]
[1739374357635,9.38e-05,95763.0,95762.0,0.1858]
[1739374357837,9.38e-05,95763.0,95762.0,0.3608]
[1739374359041,0.0060938,95763.0,95762.0,0.3608]
[1739374359645,0.0010938,95763.0,95762.0,0.3608]
[1739374359944,0.0010938,95763.0,95756.0,0.01077274]
[1739374360136,0.0010938,95763.0,95753.0,0.00015656]
[1739374360448,0.2088781,95755.0,95753.0,0.00015656]
[1739374361339,0.3608,95760.0,95753.0,0.00015656]
[1739374361640,0.0020938,95763.0,95756.0,0.3608]
[1739374361839,0.0020938,95763.0,95760.0,0.3608]
[1739374362236,0.1863,95787.0,95760.0,0.3608]
[1739374362441,0.00156707,95789.0,95771.0,0.3608]
[1739374362636,0.00156707,95789.0,95781.0,0.2088189]
[1739374362940,0.00156707,95789.0,95788.0,0.3608]
[1739374363335,0.00156707,95789.0,95778.0,0.3608]
[1739374363538,0.00156707,95789.0,95786.0,0.3608]
[1739374363941,0.00156707,95789.0,95787.0,0.4029059]
[1739374364141,0.00656707,95789.0,95787.0,0.4029059]
[1739374364633,0.00015664,95798.0,95787.0,0.1941]
[1739374364845,0.18849438,95820.0,95800.0,0.2087787]
[1739374365035,0.18849438,95820.0,95812.0,0.3608]
[1739374365344,0.40816638,95822.0,95812.0,0.3608]
[1739374365537,0.2087345,95821.0,95797.0,0.5695849]
[1739374365739,0.39723158,95820.0,95806.0,0.3608]
[1739374365938,0.18575657,95816.0,95806.0,0.3608]
[1739374366635,0.36195646,95816.0,95812.0,0.001]
[1739374366935,0.2087462,95815.0,95812.0,0.001]
[1739374367139,0.2087498,95814.0,95812.0,0.001]
[1739374367443,0.2087615,95808.0,95797.0,0.36095655]
[1739374367640,0.37389438,95807.0,95797.0,0.36095655]
[1739374368547,0.2087695,95805.0,95797.0,0.36095655]
[1739374369245,0.58265798,95807.0,95806.0,0.001]
[1739374369441,0.2087832,95798.0,95797.0,0.00015655]
[1739374369641,0.5695832,95798.0,95797.0,0.00015655]
[1739374370044,0.2087832,95798.0,95797.0,0.00015655]
[1739374371347,0.2107832,95798.0,95797.0,0.00015655]
[1739374371850,0.002,95798.0,95797.0,0.00015655]
[1739374372447,0.005,95798.0,95797.0,0.00015655]
[1739374372844,0.005,95798.0,95797.0,0.20894195]
[1739374373048,0.3608,95833.0,95797.0,0.00015655]
[1739374373049,0.18849438,95820.0,95797.0,0.00015655]
[1739374373349,0.18849438,95820.0,95806.0,0.3608]
[1739374373554,0.208758,95810.0,95806.0,0.3608]
[1739374373749,0.3608,95813.0,95797.0,0.00115655]
[1739374374050,0.003,95798.0,95797.0,0.00115655]
[1739374374646,0.003,95798.0,95797.0,0.00015655]
[1739374376051,0.2087707,95804.0,95797.0,0.00015655]
[1739374376349,0.2087707,95804.0,95797.0,0.00115655]
[1739374376553,0.2087729,95803.0,95797.0,0.00115655]
[1739374376756,0.006,95798.0,95797.0,0.00215655]
[1739374376952,0.01,95798.0,95797.0,0.00115655]
[1739374377152,0.2187832,95798.0,95797.0,0.00115655]
[1739374377552,0.2127832,95798.0,95797.0,0.00015655]
[1739374377857,0.2127832,95798.0,95778.0,0.3608]
[1739374377858,0.304,95798.0,95778.0,0.3608]
[1739374378049,0.3608,95785.0,95773.0,0.01568]
[1739374378365,0.2088355,95774.0,95773.0,0.01568]
[1739374378853,0.197,95784.0,95773.0,0.01568]
[1739374379055,0.00015655,95783.0,95773.0,0.01568]
[1739374379751,0.00015655,95783.0,95778.0,0.3608]
[1739374379956,0.00015655,95783.0,95781.0,0.2088196]
[1739374380350,0.00015655,95783.0,95782.0,0.1977]
[1739374380656,0.00015655,95783.0,95778.0,0.3648]
[1739374380959,0.00015655,95783.0,95781.0,0.208819]
[1739374381350,0.00015655,95783.0,95778.0,0.3608]
[1739374381657,0.00015655,95783.0,95778.0,0.3658]
[1739374382055,0.00015655,95783.0,95782.0,0.2088181]
[1739374382447,0.00015655,95783.0,95782.0,0.5696181]
[1739374382649,0.2087336,95821.0,95782.0,0.6608]
[1739374382852,0.19138077,95830.0,95820.0,0.3608]
[1739374383150,0.00156639,95830.0,95820.0,0.3608]
[1739374383450,0.00156639,95830.0,95829.0,0.3608]
[1739374383451,0.19006077,95830.0,95829.0,0.3608]
[1739374383758,0.00156639,95830.0,95829.0,0.3608]
[1739374384949,0.00356639,95830.0,95829.0,0.3618]
[1739374385154,0.00356639,95830.0,95829.0,0.001]
[1739374386157,0.21227989,95830.0,95829.0,0.001]
[1739374387155,0.2087595,95809.0,95805.0,0.3608]
[1739374387361,0.2077595,95809.0,95805.0,0.3608]
[1739374387553,0.2087641,95807.0,95797.0,0.3608]
[1739374387755,0.55061438,95815.0,95796.0,0.3608]
[1739374387957,0.5695766,95801.0,95787.0,0.00156568]
[1739374388257,0.208805,95788.0,95787.0,0.00156568]
[1739374389264,0.207805,95788.0,95787.0,0.00156568]
[1739374390751,0.3608,95792.0,95787.0,0.00156568]
[1739374390955,0.208805,95788.0,95787.0,0.00156568]
[1739374391261,0.569605,95788.0,95787.0,0.00156568]
[1739374391765,0.3608,95788.0,95787.0,0.00156568]
[1739374392451,0.6608,95788.0,95778.0,0.00015655]
[1739374392652,0.5696246,95779.0,95778.0,0.00015655]
[1739374393653,0.57700336,95788.0,95779.0,0.2088234]
[1739374393961,0.57576335,95788.0,95781.0,0.2088197]
[1739374394359,0.21496335,95788.0,95787.0,0.3608]
[1739374394569,0.00615655,95788.0,95787.0,0.3608]
[1739374395058,0.00124001,95806.0,95787.0,0.6608]
[1739374395262,0.586,95845.0,95805.0,0.3608]
[1739374395456,0.586,95845.0,95788.0,0.46982]
[1739374395457,0.58724001,95845.0,95828.0,0.3608]
[1739374395657,0.00124001,95845.0,95828.0,0.3608]
[1739374395972,0.2086582,95856.0,95835.0,0.2087006]
[1739374396257,0.2086582,95856.0,95852.0,0.3608]
[1739374396258,0.00015646,95855.0,95852.0,0.3608]
[1739374397059,0.00015646,95855.0,95836.0,0.00015655]
[1739374397269,0.2086964,95838.0,95836.0,0.00015655]
[1739374397463,0.5694771,95847.0,95836.0,0.00015655]
[1739374397657,0.2086771,95847.0,95836.0,0.00015655]
[1739374398060,0.29045825,95852.0,95836.0,0.00015655]
[1739374398270,0.3608,95852.0,95836.0,0.00015655]
[1739374398564,0.29045825,95850.0,95836.0,0.00015655]
[1739374398767,0.004,95847.0,95836.0,0.00115655]
[1739374398958,0.003,95847.0,95836.0,0.00115655]
[1739374399359,0.29045825,95850.0,95836.0,0.00115655]
[1739374399663,0.3648,95852.0,95836.0,0.00115655]
[1739374399861,0.3648,95852.0,95836.0,0.00215655]
[1739374400876,0.3648,95852.0,95838.0,0.2086954]
[1739374401460,0.3648,95852.0,95836.0,0.00215655]
[1739374401660,0.3608,95841.0,95836.0,0.00215655]
[1739374402864,0.3608,95841.0,95838.0,0.001]
[1739374403059,0.3608,95841.0,95838.0,0.002]
[1739374403466,0.5694899,95841.0,95838.0,0.002]
[1739374403862,0.5704899,95841.0,95838.0,0.001]
[1739374405165,0.5754899,95841.0,95836.0,0.00215655]
[1739374405877,0.5704899,95841.0,95836.0,0.00115655]
[1739374406070,0.2146899,95841.0,95838.0,0.001]
[1739374406258,0.006,95841.0,95838.0,0.001]
[1739374406661,0.2086917,95840.0,95838.0,0.001]
[1739374406975,0.5583,95839.0,95836.0,0.00015655]
[1739374407167,0.5583,95839.0,95836.0,0.00115655]
[1739374407361,0.5583,95839.0,95812.0,0.3608]
[1739374407664,0.2087487,95814.0,95812.0,0.3608]
[1739374408175,0.2087527,95812.0,95801.0,0.30860631]
[1739374408470,0.2087679,95805.0,95801.0,0.30860631]
[1739374408673,0.2087679,95805.0,95802.0,0.00015655]
[1739374409374,0.2077679,95805.0,95802.0,0.00015655]
[1739374409668,0.2087723,95803.0,95802.0,0.00015655]
[1739374409967,0.5695723,95803.0,95802.0,0.00015655]
[1739374411168,0.3608,95803.0,95802.0,0.00015655]
[1739374411361,0.003,95805.0,95802.0,0.00015655]
[1739374411864,0.2117723,95803.0,95802.0,0.00115655]
[1739374412271,0.003,95803.0,95802.0,0.00115655]
[1739374412567,0.3638,95803.0,95802.0,0.00115655]
[1739374412762,0.3658,95803.0,95802.0,0.00115655]
[1739374413163,0.18981965,95803.0,95802.0,0.00115655]
[1739374413365,0.002,95803.0,95802.0,0.00115655]
[1739374413760,0.002,95803.0,95802.0,0.00015655]
[1739374414158,0.002,95803.0,95802.0,0.36095655]
[1739374414767,0.00015655,95821.0,95802.0,0.36095655]
[1739374414967,0.00015655,95821.0,95820.0,0.3608]
[1739374415470,0.2087499,95814.0,95802.0,0.37560388]
[1739374415666,0.20889055,95821.0,95802.0,0.37560388]
[1739374415969,0.29045825,95820.0,95802.0,0.37560388]
[1739374416170,0.2087579,95810.0,95802.0,0.36195655]
[1739374416361,0.3608,95816.0,95802.0,0.36195655]
[1739374416566,0.2087575,95810.0,95802.0,0.36295655]
[1739374416869,0.3608,95816.0,95802.0,0.36295655]
[1739374417070,0.2087623,95808.0,95802.0,0.36295655]
[1739374417666,0.2087472,95815.0,95802.0,0.36195655]
[1739374418374,0.2087472,95815.0,95810.0,0.3608]
[1739374418679,0.00015655,95821.0,95810.0,0.3608]
[1739374418862,0.00015655,95821.0,95819.0,0.3608]
[1739374419177,0.00015655,95821.0,95819.0,0.5695366]
[1739374419368,0.00015655,95821.0,95819.0,0.3608]
[1739374420176,0.00015655,95821.0,95810.0,0.3608]
[1739374420774,0.00315655,95821.0,95810.0,0.3608]
[1739374421079,0.21189155,95821.0,95810.0,0.3608]
[1739374421379,0.20889155,95821.0,95810.0,0.3608]
[1739374421572,0.21089155,95821.0,95810.0,0.3608]
[1739374422076,0.21089155,95821.0,95811.0,0.2087544]
[1739374422673,0.00215655,95821.0,95813.0,0.2087496]
[1739374422876,0.00215655,95821.0,95814.0,0.2087466]
[1739374423079,0.00215655,95821.0,95810.0,0.3608]
[1739374423267,0.2087417,95818.0,95810.0,0.3608]
[1739374423473,0.00215655,95821.0,95810.0,0.3608]
[1739374423972,0.00215655,95821.0,95814.0,0.2087475]
[1739374424167,0.00215655,95821.0,95810.0,0.3608]
[1739374424168,0.3608,95819.0,95810.0,0.3608]
[1739374424476,0.00115655,95821.0,95811.0,0.01630707]
[1739374424975,0.00015655,95821.0,95818.0,0.3608]
[1739374425373,0.00015655,95821.0,95810.0,0.3608]
[1739374425569,0.2087353,95820.0,95810.0,0.3608]
[1739374425774,0.00015655,95821.0,95810.0,0.37710703]
[1739374426083,0.00015655,95821.0,95818.0,0.3608]
[1739374427873,0.00015655,95821.0,95816.0,0.01630703]
[1739374428182,0.00015655,95821.0,95818.0,0.3608]
[1739374428383,0.00015655,95821.0,95820.0,0.2087353]
[1739374428686,0.00215655,95821.0,95820.0,0.2087353]
[1739374428977,0.00215655,95821.0,95820.0,0.22504221]
[1739374429184,0.00115655,95821.0,95820.0,0.22504221]
[1739374430179,0.2086877,95842.0,95823.0,0.00115655]
[1739374430483,0.2086877,95842.0,95830.0,0.2087129]
[1739374430782,0.18820462,95850.0,95830.0,0.2087129]
[1739374430979,0.2086902,95841.0,95832.0,0.2087085]
[1739374431371,0.2086871,95843.0,95833.0,0.2087066]
[1739374431571,0.00015646,95846.0,95829.0,0.3608]
[1739374431780,0.2087097,95832.0,95829.0,0.3608]
[1739374432074,0.2087097,95832.0,95830.0,0.001]
[1739374432478,0.2087097,95832.0,95829.0,0.3608]
[1739374432683,0.2077097,95832.0,95829.0,0.3608]
[1739374433280,0.2086925,95840.0,95829.0,0.3608]
[1739374433480,0.2086986,95837.0,95829.0,0.3608]
[1739374433781,0.3608,95839.0,95829.0,0.3608]
[1739374433983,0.2087051,95834.0,95829.0,0.3608]
[1739374434488,0.3608,95839.0,95830.0,0.208713]
[1739374434679,0.3608,95839.0,95831.0,0.2087111]
[1739374434879,0.007,95843.0,95834.0,0.2087034]
[1739374435076,0.007,95843.0,95829.0,0.3608]
[1739374435282,0.007,95843.0,95837.0,0.3608]
[1739374435687,0.2086873,95842.0,95837.0,0.3608]
[1739374435885,0.2086873,95842.0,95830.0,0.001]
[1739374436281,0.00015646,95846.0,95830.0,0.001]
[1739374436484,0.007,95843.0,95839.0,0.2086935]
[1739374437285,0.007,95843.0,95837.0,0.3628]
[1739374437482,0.007,95843.0,95837.0,0.3618]
[1739374437995,0.208696,95838.0,95837.0,0.3618]
[1739374438287,0.208696,95838.0,95837.0,0.001]
[1739374438687,0.2087113,95831.0,95830.0,0.002]
[1739374438888,0.5695113,95831.0,95830.0,0.002]
[1739374439491,0.3608,95831.0,95822.0,0.30925348]
[1739374439690,0.2087287,95823.0,95822.0,0.30925348]
[1739374439894,0.2087287,95823.0,95812.0,0.37049479]
[1739374439895,0.2087505,95813.0,95812.0,0.37049479]
[1739374440192,0.5685505,95813.0,95812.0,0.37049479]
[1739374440398,0.5675505,95813.0,95812.0,0.37049479]
[1739374441194,0.00015655,95822.0,95812.0,0.73129479]
[1739374441394,0.00015655,95822.0,95821.0,0.2087331]
[1739374441590,0.00015655,95822.0,95821.0,0.225041]
[1739374442196,0.20888745,95822.0,95821.0,0.0163079]
[1739374443098,0.21188745,95822.0,95821.0,0.0163079]
[1739374443297,0.21188745,95822.0,95821.0,0.01630731]
[1739374443903,0.21188745,95822.0,95821.0,0.01630729]
[1739374444903,0.21288745,95822.0,95821.0,0.01730729]
[1739374445295,0.21288745,95822.0,95821.0,0.01730844]
[1739374445791,0.20988745,95822.0,95821.0,0.01730844]
[1739374446008,0.00515655,95822.0,95821.0,0.01730844]
[1739374447206,0.00415655,95822.0,95821.0,0.01630844]
[1739374447418,0.00315655,95822.0,95821.0,0.01730844]
[1739374447610,0.00315655,95822.0,95804.0,0.01631017]
[1739374447809,0.00315655,95822.0,95792.0,0.02609351]
[1739374447810,0.5695679,95805.0,95787.0,0.208806]
[1739374448010,0.5695679,95805.0,95784.0,0.03998516]
[1739374448215,0.5695679,95805.0,95778.0,0.1845]
[1739374448216,0.3689,95804.0,95785.0,0.01631215]
[1739374448513,0.3689,95804.0,95774.0,0.3705]
[1739374448514,0.208826,95779.0,95774.0,0.00064]
[1739374448706,0.208826,95779.0,95778.0,0.01631336]
[1739374449518,0.208826,95779.0,95774.0,0.01631461]
[1739374449917,0.208826,95779.0,95772.0,0.36136]
[1739374449918,0.208826,95779.0,95778.0,0.005]
[1739374451019,0.207826,95779.0,95778.0,0.005]
[1739374452120,0.221826,95779.0,95778.0,0.006]
[1739374452307,0.014,95779.0,95769.0,0.00015655]
[1739374452513,0.2088884,95750.0,95745.0,0.00156639]
[1739374452718,0.3608,95770.0,95745.0,0.00156639]
[1739374452719,0.2088916,95749.0,95745.0,0.00156639]
[1739374452917,0.208872,95758.0,95745.0,0.00156639]
[1739374453113,0.54900462,95770.0,95745.0,0.00156639]
[1739374453114,0.2038534,95766.0,95754.0,0.3608]
[1739374453321,7.334e-05,95765.0,95756.0,0.18820462]
[1739374453514,7.334e-05,95765.0,95762.0,0.3608]
[1739374453717,7.334e-05,95765.0,95763.0,0.1936]
[1739374454324,0.2088638,95762.0,95753.0,0.3608]
[1739374454626,0.208874,95757.0,95753.0,0.3608]
[1739374454828,0.207874,95757.0,95753.0,0.3608]
[1739374455121,0.2088835,95752.0,95751.0,0.01347292]
[1739374455314,0.3608,95761.0,95744.0,0.3608]
[1739374455516,7.334e-05,95765.0,95752.0,0.3608]
[1739374456110,0.2088751,95756.0,95752.0,0.3608]
[1739374456314,7.334e-05,95765.0,95752.0,0.3608]
[1739374456315,0.2088776,95755.0,95752.0,0.3608]
[1739374457113,0.2088776,95755.0,95750.0,0.01324931]
[1739374457719,0.00107334,95765.0,95750.0,0.01324931]
[1739374458031,0.2088647,95761.0,95753.0,0.001]
[1739374458728,0.2088647,95761.0,95756.0,0.3608]
[1739374459120,0.004,95762.0,95756.0,0.3608]
[1739374459429,0.2088669,95760.0,95756.0,0.3608]
[1739374459631,0.004,95762.0,95756.0,0.3608]
[1739374459927,0.004,95762.0,95756.0,0.7216]
[1739374460123,0.00015664,95770.0,95766.0,0.2088516]
[1739374460326,0.00015664,95770.0,95769.0,0.3608]
[1739374460725,0.2088168,95783.0,95769.0,0.3608]
[1739374461525,0.005,95770.0,95769.0,0.3608]
[1739374461831,0.005,95770.0,95769.0,0.73493182]
[1739374462030,0.00015664,95779.0,95769.0,0.73493182]
[1739374462230,0.00015664,95779.0,95778.0,0.3608]
[1739374462826,0.00015664,95779.0,95769.0,0.37413182]
[1739374463030,0.208834,95775.0,95769.0,0.3608]
[1739374463230,0.208837,95774.0,95769.0,0.3608]
[1739374463419,0.00015664,95779.0,95769.0,0.3608]
[1739374463627,0.2088435,95771.0,95769.0,0.3608]
[1739374464125,0.17335664,95779.0,95756.0,0.3618]
[1739374464324,0.2088684,95759.0,95756.0,0.3618]
[1739374464530,0.2078684,95759.0,95756.0,0.3608]
[1739374465028,0.18820462,95766.0,95756.0,0.3608]
[1739374465029,0.2088725,95757.0,95756.0,0.3608]
[1739374466126,0.39705832,95766.0,95756.0,0.3608]
[1739374466428,0.17935664,95779.0,95759.0,0.2088669]
[1739374466629,0.39705062,95770.0,95760.0,0.3523]
[1739374466835,0.18820462,95770.0,95760.0,0.3523]
[1739374467135,0.2088542,95766.0,95760.0,0.3523]
[1739374467426,0.2088579,95764.0,95760.0,0.3523]
[1739374467631,0.18820462,95770.0,95759.0,0.3608]
[1739374467931,0.208866,95760.0,95759.0,0.3608]
[1739374468131,0.3608,95761.0,95757.0,0.01631736]
[1739374468322,0.3608,95758.0,95742.0,0.01631736]
[1739374468521,0.2089336,95729.0,95728.0,0.01631736]
[1739374468829,0.2089489,95722.0,95715.0,0.01631736]
[1739374469123,0.3608,95721.0,95714.0,0.36977372]
[1739374469827,0.3598,95721.0,95714.0,0.36977372]
[1739374470428,0.2089642,95715.0,95714.0,0.36977372]
[1739374471331,0.20908444,95715.0,95714.0,0.36977372]
[1739374472227,0.20308444,95715.0,95714.0,0.36977372]
[1739374472627,0.20408444,95715.0,95714.0,0.36977372]
[1739374473034,0.20908444,95715.0,95714.0,0.36977372]
[1739374473230,0.20908444,95715.0,95711.0,0.00015664]
[1739374473435,0.2089706,95713.0,95711.0,0.00015664]
[1739374474136,0.00612024,95715.0,95711.0,0.36095664]
[1739374474532,0.209045,95678.0,95677.0,0.02612117]
[1739374474732,0.2090487,95677.0,95670.0,0.00156762]
[1739374475033,9.959e-05,95678.0,95676.0,0.3608]
[1739374475233,9.959e-05,95678.0,95670.0,0.00156762]
[1739374476038,0.3608,95679.0,95670.0,0.00156762]
[1739374476438,0.3408,95679.0,95670.0,0.21062792]
[1739374476637,0.3408,95679.0,95670.0,0.00156762]
[1739374476834,0.00015672,95684.0,95672.0,0.3608]
[1739374477434,0.00015672,95684.0,95677.0,0.2090468]
[1739374478444,0.00015672,95684.0,95679.0,0.2090414]
[1739374478638,0.3608,95734.0,95680.0,0.56402894]
[1739374478947,0.54900462,95740.0,95719.0,0.3608]
[1739374479240,0.3608,95738.0,95720.0,0.02612894]
[1739374479536,0.18820462,95730.0,95720.0,0.02612894]
[1739374479746,0.3608,95721.0,95715.0,0.00015672]
[1739374480040,0.3608,95719.0,95687.0,0.02612894]
[1739374480242,0.3608,95707.0,95688.0,0.0424568]
[1739374480540,0.2089479,95723.0,95706.0,0.5697821]
[1739374480838,0.2089368,95728.0,95721.0,0.3608]
[1739374481041,0.2089368,95728.0,95707.0,0.0424568]
[1739374481042,0.00015672,95724.0,95711.0,0.2089719]
[1739374481234,0.20910202,95724.0,95715.0,0.00015672]
[1739374481429,0.00015672,95724.0,95716.0,0.208962]
[1739374481732,0.001,95721.0,95716.0,0.208962]
[1739374482436,0.001,95721.0,95715.0,0.00515672]
[1739374482437,0.001,95721.0,95719.0,0.208955]
[1739374483445,0.001,95721.0,95716.0,0.02612894]
[1739374483446,0.00015672,95724.0,95722.0,0.2089482]
[1739374483749,0.00015672,95724.0,95723.0,0.3608]
[1739374484230,0.00015672,95724.0,95716.0,0.23507734]
[1739374484432,0.00015672,95724.0,95717.0,0.02611716]
[1739374484632,0.00015672,95724.0,95718.0,0.02611716]
[1739374484834,0.00015672,95724.0,95716.0,0.2089609]
[1739374485139,0.00015672,95724.0,95723.0,0.2089467]
[1739374486542,0.00015672,95724.0,95723.0,0.22526954]
[1739374487438,0.00315672,95724.0,95723.0,0.22526954]
[1739374487639,0.00315672,95724.0,95723.0,0.01632284]
[1739374488345,0.00015672,95724.0,95718.0,0.01632284]
[1739374488541,0.00015672,95724.0,95717.0,0.3608]
[1739374488542,0.00315672,95724.0,95719.0,0.01632284]
[1739374488741,0.00315672,95724.0,95720.0,0.01632284]
[1739374488947,0.00315672,95724.0,95722.0,0.2089484]
[1739374489145,0.00315672,95724.0,95723.0,0.01632284]
[1739374489740,0.00315672,95724.0,95718.0,0.01632284]
[1739374489943,0.00315672,95724.0,95719.0,0.01632284]
[1739374490143,0.00315672,95724.0,95720.0,0.01632284]
[1739374490342,0.00315672,95724.0,95721.0,0.01632284]
[1739374490542,0.00715672,95724.0,95722.0,0.01632284]
[1739374490747,0.00715672,95724.0,95723.0,0.01632284]
[1739374491141,0.00315672,95724.0,95723.0,0.22526954]
[1739374491735,0.00315672,95724.0,95723.0,0.01632284]
[1739374491939,0.21910122,95724.0,95723.0,0.01732284]
[1739374492347,0.22010122,95724.0,95723.0,0.01732284]
[1739374492540,0.22010122,95724.0,95723.0,0.01732403]
[1739374492739,0.58090122,95724.0,95723.0,0.01732403]
[1739374493040,0.58090122,95724.0,95715.0,0.00015672]
[1739374493041,0.2089598,95717.0,95716.0,0.01632403]
[1739374493246,0.37195672,95724.0,95701.0,0.01632647]